[Event "125-Jahre Werder Bremen 2024"]
[Site "Bremen"]
[Date "2024.03.03"]
[Round "2.10"]
[White "Meins, Gerlef"]
[Black "Gloeckler, Christian"]
[Result "1/2-1/2"]
[ECO "D45"]
[WhiteElo "2390"]
[BlackElo "2356"]
[Annotator "TA"]
[PlyCount "230"]
[EventDate "2024.02.26"]
[EventType "swiss"]
[EventCountry "GER"]
[SourceTitle "playchess.com"]
[Source "ChessBase"]
[SourceQuality "1"]
[TimeControl "40/6000+30:1800+30"]

{[%evp 17,229,0,19,-5,28,35,37,29,49,58,86,59,69,50,202,184,175,169,169,166,187,0,0,0,0,0,0,0,0,-54,-36,-34,-43,-47,-43,-16,-40,-35,-33,-119,-120,-124,-123,-139,-106,-122,-83,-110,-79,-104,-83,-111,-118,-213,-205,-206,-213,-202,-213,-205,-163,-163,-159,-163,-155,-156,-155,-157,-156,-161,-130,-130,-130,-129,-129,-130,-122,-122,-122,-122,-122,-122,-122,-122,-122,-122,0,-122,-109,-121,-70,-65,-66,-144,-102,-102,-102,-102,-102,-106,-106,-106,-106,-106,-106,-106,-106,-106,-106,-106,-106,-106,-106,-106,-103,-106,-106,-160,-115,-151,-149,-160,-149,-160,-141,-149,-149,-141,-35,-36,-13,-146,-75,-75,-29,-77,-8,-145,-145,-204,0,-8,-8,-8,-8,-8,-8,-8,-8,-8,-8,-8,-8,-8,-8,-8,-8,-8,-8,-8,-8,-8,-8,-8,-8,-8,-8,-20,-20,-20,-20,-20,-20,-20,-20,-20,0,-20,-20,-20,-20,-20,-20,-20,-20,-20,-20,-20,-20,-20,-20,-20,-8,-8,-8,-8,-8,-8,-8,-8,-8,-8,-8,-8,0,-8,0,-8,-8,-8,-8,-8,-8,-8]} 1. Nf3 {[%emt 0:00:09]} d5 {[%emt 0:00:07]} 2. e3 {[%emt 0:00:36]} Nf6 {[%emt 0:01:02]} 3. c4 {[%emt 0:00:54]} e6 {[%emt 0:00:19]} 4. Nc3 {[%emt 0:01:02]} c6 {[%emt 0:01:07]} 5. d4 {[%emt 0:01:11]} Nbd7 {[%emt 0:00:35]} 6. Qc2 {[%emt 0:01:19]} Be7 {[%emt 0:01:11]} 7. Bd3 {[%emt 0:01:59]} dxc4 {[%emt 0:02:28]} 8. Bxc4 {[%emt 0:00:07]} b5 {[%emt 0:00:21]} 9. Bd3 {[%emt 0:03:49]} a6 {[%emt 0:01:36]} 10. e4 {[%emt 0:14:41]} b4 {[%emt 0:45:13]} 11. Na4 {[%emt 0:02:57]} Bb7 {[%emt 0:01:13][%cal Oc6c5]} 12. Bg5 {[%emt 0:17:17][%cal Bc1g5,Bg5h4,Bh4g3,Bg3e5][%mdl 32] White is slightly better.} Qa5 {[%emt 0:13:53] Threatens to win with ...b3+.} 13. O-O {[%emt 0:11:01]} h6 {[%emt 0:17:07]} 14. Bh4 {[%emt 0:08:19]} g5 {[%emt 0:03:09]} 15. Bg3 {[%emt 0:00:21] Hoping for Ne5.} Rc8 $2 {[%emt 0:03:42]} (15... Nh5 $1 $14) 16. Ne5 {[%emt 0:06:50]} Nxe5 {[%emt 0:03:47]} 17. Bxe5 {[%emt 0:00:10]} c5 {[%emt 0:02:59]} 18. dxc5 {[%emt 0:12:57]} (18. Nxc5 Bxc5 19. Qe2 (19. Bxf6 $2 Bxd4 $17) (19. dxc5 Rxc5 $17) 19... Be7 $19) 18... O-O {[%emt 0:01:23]} 19. Rfc1 $2 {[%emt 0:02:23]} ({White has to play} 19. a3 $18 {And now axb4 would win.} Bc6 20. axb4 Qxb4 21. Bc3 (21. Bxa6 Rcd8 $16) 21... Bxa4 22. Rxa4 (22. Qxa4 Qxa4 23. Rxa4 Rxc5 $16) 22... Qxc5 23. Qe2 (23. Bxa6 Ra8 $16) (23. Rxa6 Rfd8 $18)) 19... Rfd8 $11 {[%emt 0:01:03][%cal Od8d3]} 20. b3 $1 {[%emt 0:01:46]} Nd7 {[%emt 0:00:40][%csl LRc5,LRe5]} 21. Bd4 {[%emt 0:00:22]} Bc6 {[%emt 0:00:13]} 22. a3 {[%emt 0:02:20]} bxa3 {[%emt 0:01:37]} (22... Bxa4 $2 23. axb4 (23. bxa4 Nxc5 24. axb4 Qxb4 $17) 23... Qxb4 24. Rxa4 $18) 23. Rxa3 {[%emt 0:09:43]} (23. Bc3 $11 Qc7 24. Bxa6 (24. Rxa3 Bb5 $17)) 23... Qb4 $1 $15 {[%emt 0:00:45][%csl LRa3,LRd4]} (23... Nxc5 24. Bxc5 (24. Bc3 Qxc3 25. Nxc3 Nxd3 $11) 24... Bxc5 (24... Bxa4 $2 25. Rxa4 $18) 25. Qxc5 $14) 24. Qb2 {[%emt 0:01:32] [#]} Ne5 $1 {[%emt 0:00:26]} 25. Bc3 $1 {[%emt 0:05:57]} (25. Bxe5 $2 {loses.} Rxd3 26. f3 g4 $19) 25... Nxd3 {[%emt 0:00:32]} 26. Bxb4 {[%emt 0:00:03]} Nxb2 {[%emt 0:00:10]} 27. Nxb2 {[%emt 0:00:04]} Bb5 {[%emt 0:00:33] A strong pair of Bishops.} 28. h3 {[%emt 0:04:01]} (28. Ba5 $15 Rxc5 29. Rxc5 Bxc5 30. Bxd8 (30. b4 $2 Bxf2+ 31. Kxf2 Rd2+ 32. Kg1 Rxb2 $19) 30... Bxa3 31. Nc4) 28... Rd4 $17 {[%emt 0:01:21][%csl LRb4,LRe4]} 29. Nc4 {[%emt 0:00:36]} Rxe4 {[%emt 0:01:18]} ({Worse is} 29... Bxc5 30. Nb6 Bxb4 31. Rxc8+ Kg7 32. Ra1 $14) 30. Raa1 {[%emt 0:00:16]} Rc7 {[%emt 0:02:31]} 31. Ba3 {[%emt 0:00:31]} Bxc4 {[%emt 0:02:29]} 32. bxc4 {[%emt 0:00:12]} a5 {[%emt 0:00:24]} (32... Bxc5 {simplifies} 33. Bxc5 Rxc5 34. Rxa6 Rexc4 35. Rxc4 Rxc4 36. Ra5 Kg7) 33. c6 {[%emt 0:00:47]} Bf6 {[%emt 0:00:17]} 34. Rab1 {[%emt 0:00:09]} Rxc6 {[%emt 0:00:46]} 35. Rb5 {[%emt 0:00:41]} (35. c5 $17) 35... Rexc4 $19 {[%emt 0:00:43]} (35... Rcxc4 36. Rxc4 Rxc4 37. Rxa5) 36. Rxc4 {[%emt 0:00:08]} Rxc4 {[%emt 0:00:03]} 37. Rxa5 {[%emt 0:00:07][%mdl 4096] Endgame. KRB-KRB} Bd4 {[%emt 0:00:18]} 38. Ra8+ {[%emt 0:01:21]} Kg7 {[%emt 0:00:12]} 39. Bf8+ {[%emt 0:00:25]} Kg6 {[%emt 0:00:18]} 40. Ra2 {[%emt 0:00:23] Against Rc2} Rc1+ {[%emt 0:01:21]} 41. Kh2 {[%emt 0:30:03]} Rf1 {[%emt 0:30:35]} 42. Kg3 {[%emt 0:00:00]} h5 {[%emt 0:00:00] ...f5 would now be deadly.} 43. Rc2 {[%emt 0:00:00]} Rb1 {[%emt 0:00:00] Strongly threatening ...Rb3+.} 44. Kf3 {[%emt 0:00:00]} Rb3+ {[%emt 0:00:00]} 45. Ke2 {[%emt 0:00:00]} Rb8 {[%emt 0:00:00]} 46. Bd6 {[%emt 0:00:00]} Rd8 {[%emt 0:00:00]} 47. Be7 {[%emt 0:00:00]} Re8 {[%emt 0:00:00]} 48. Ba3 {[%emt 0:00:00]} Ra8 {[%emt 0:00:00]} 49. Bc1 {[%emt 0:00:00]} Ra5 {[%emt 0:00:00]} 50. Bd2 {[%emt 0:00:00]} Ra3 {[%emt 0:00:00]} 51. Bb4 {[%emt 0:00:00]} Rb3 {[%emt 0:00:00]} (51... Ra6 $17 52. Bd2 h4) 52. Bc5 {[%emt 0:00:00]} (52. Bf8 $1 $11) 52... Be5 {[%emt 0:00:00]} 53. Be3 {[%emt 0:00:00]} g4 {[%emt 0:00:00]} (53... Bf4 $17 54. Bxf4 gxf4) 54. hxg4 $15 {[%emt 0:00:00]} hxg4 {[%emt 0:00:00]} 55. g3 {[%emt 0:02:20]} ({White should play} 55. Rc4 $15) 55... Ra3 {[%emt 0:00:00]} 56. Rc5 {[%emt 0:01:00]} Ra2+ {[%emt 0:00:00]} 57. Kf1 {[%emt 0:00:09]} f6 {[%emt 0:00:00]} 58. Rc6 {[%emt 0:00:42]} Kf5 {[%emt 0:00:00]} 59. Kg2 {[%emt 0:00:52]} Ba1 {[%emt 0:00:00]} 60. Rc4 {[%emt 0:01:18] [#]} e5 $1 {[%emt 0:00:52] Prevents Rf4+.} 61. Kf1 {[%emt 0:02:16]} Ra3 {[%emt 0:00:33]} 62. Ke2 {[%emt 0:00:21]} Bc3 {[%emt 0:00:47]} 63. Bc5 {[%emt 0:00:45]} Ra2+ {[%emt 0:00:39]} 64. Kf1 {[%emt 0:02:18]} Bd2 {[%emt 0:00:46]} 65. Bb6 {[%emt 0:00:04]} Bg5 {[%emt 0:02:28]} 66. Kg2 {[%emt 0:00:28]} Ra6 {[%emt 0:01:23]} 67. Rb4 {[%emt 0:00:28]} (67. Be3 $142) 67... Ke6 {[%emt 0:00:41]} 68. Rb3 {[%emt 0:00:29]} f5 {[%emt 0:00:51]} 69. Be3 {[%emt 0:00:17]} Bd8 {[%emt 0:00:30]} 70. Rb8 {[%emt 0:00:28]} Kd7 {[%emt 0:01:01]} 71. Rb1 {[%emt 0:01:03]} Bc7 {[%emt 0:00:16]} 72. Rh1 {[%emt 0:00:20] [#]} Rf6 {[%emt 0:02:30]} (72... Rc6 $1 $17 73. Rh6 Rxh6 74. Bxh6 Bd6) 73. Rh7+ {[%emt 0:00:21]} Kc8 {[%emt 0:00:20] White should prevent ...f4.} 74. Rh6 {[%emt 0:01:04]} (74. Bg5 $11 Rf8 75. Re7) 74... Rf7 {[%emt 0:00:23]} (74... Rxh6 $142 75. Bxh6 Bd6) 75. Rg6 {[%emt 0:00:43]} Kb7 {[%emt 0:00:50]} ({Black should try} 75... Kd7 $17) 76. Bg5 {[%emt 0:00:34]} (76. f3 $11 {was preferrable.}) 76... f4 {[%emt 0:00:33]} (76... e4 $17) 77. gxf4 {[%emt 0:00:07]} (77. Bh6 $1 $11) 77... exf4 $17 {[%emt 0:00:07]} 78. f3 {[%emt 0:00:27]} (78. Kf1 $17 {is a better defense.}) 78... Be5 $2 {[%emt 0:00:55]} ({Better is} 78... g3 $19 {...Rd7 is the strong threat.} 79. Rf6 Rxf6 80. Bxf6 Kc6) 79. Re6 {[%emt 0:00:48] The position is equal.} Rf5 {[%emt 0:00:02]} 80. Rxe5 $1 {[%emt 0:00:16]} Rxe5 {[%emt 0:00:29]} 81. Bxf4 {[%emt 0:00:06]} gxf3+ {[%emt 0:00:17]} (81... Rf5 $5 82. Kg3 $8 gxf3 83. Kxf3 Ra5 $11) 82. Kxf3 $11 {[%emt 0:00:02] KR-KB} Re6 {[%emt 0:00:11]} 83. Bg3 {[%emt 0:00:45]} Kc6 {[%emt 0:00:07]} 84. Kg2 {[%emt 0:00:40]} Rg6 {[%emt 0:00:06]} 85. Kf3 {[%emt 0:00:17]} Kd5 {[%emt 0:00:09]} 86. Bh2 {[%emt 0:00:13]} Kd4 {[%emt 0:00:12]} 87. Bg3 {[%emt 0:00:23]} Rf6+ {[%emt 0:00:30]} 88. Kg2 {[%emt 0:00:07]} Ke4 {[%emt 0:00:07]} 89. Bh2 {[%emt 0:00:25]} Rf5 {[%emt 0:00:13]} 90. Bg3 {[%emt 0:00:38]} Ke3 {[%emt 0:00:08]} 91. Bh2 {[%emt 0:00:47]} Rg5+ {[%emt 0:00:09]} 92. Kh1 {[%emt 0:01:45]} Kf2 {[%emt 0:00:06]} 93. Bc7 $1 {[%emt 0:00:29]} Rb5 {[%emt 0:00:10]} 94. Bd6 {[%emt 0:00:26]} Rd5 {[%emt 0:00:28]} 95. Bc7 $1 {[%emt 0:00:11]} Rh5+ {[%emt 0:00:05]} 96. Bh2 {[%emt 0:00:05]} Rg5 {[%emt 0:00:05]} 97. Bc7 {[%emt 0:00:13]} Rg1+ {[%emt 0:00:04]} 98. Kh2 {[%emt 0:00:05]} Rc1 {[%emt 0:00:10]} 99. Bb6+ {[%emt 0:00:43]} Kf3 {[%emt 0:00:06]} 100. Bg1 {[%emt 0:00:42]} Rc4 {[%emt 0:00:09][%cal Rc4h4]} 101. Kh1 {[%emt 0:00:10]} Kg3 {[%emt 0:00:22] ( -> ...Rh4+)} 102. Bh2+ {[%emt 0:00:30]} Kh3 {[%emt 0:00:12]} 103. Bg1 {[%emt 0:00:10]} Rg4 {[%emt 0:00:10]} 104. Bf2 {[%emt 0:00:16]} Rg2 {[%emt 0:00:06]} 105. Bc5 {[%emt 0:01:06]} Rh2+ {[%emt 0:00:11]} 106. Kg1 {[%emt 0:00:01]} Rc2 {[%emt 0:00:13]} 107. Bd6 {[%emt 0:00:55]} Kg4 {[%emt 0:00:26]} 108. Kh1 {[%emt 0:00:37]} Re2 {[%emt 0:00:17]} 109. Bc7 {[%emt 0:00:45]} Re1+ {[%emt 0:00:11]} 110. Kg2 {[%emt 0:00:05]} Re2+ {[%emt 0:00:04]} 111. Kh1 {[%emt 0:00:05]} Rc2 {[%emt 0:00:06]} 112. Bd6 $1 {[%emt 0:00:22]} Ra2 {[%emt 0:00:07]} 113. Bc7 {[%emt 0:00:15]} Kh3 {[%emt 0:00:03][%cal Ra2a1]} 114. Bb6 {[%emt 0:00:35]} Ra1+ {[%emt 0:00:05]} 115. Bg1 {[%emt 0:00:06]} Kg3 {[%emt 0:00:06] What a fight!   Weighted Error Value: White=0.22 (precise) /Black=0.14 (very precise) .  Missed win:     	White=1     	Black=1      Mistake:       	White=10    	Black=7      Inaccurate:     	White=4     	Black=3      OK:         	White=31    	Black=36     Best:        	White=5     	Black=6      Strong:       	White=6     	Black=2} 1/2-1/2

[Event "125-Jahre Werder Bremen 2024"]
[Site "Bremen"]
[Date "2024.03.03"]
[Round "2.11"]
[White "Colbow, Collin"]
[Black "Pajeken, Jakob Leon"]
[Result "1/2-1/2"]
[ECO "B90"]
[WhiteElo "2373"]
[BlackElo "2424"]
[Annotator "TA"]
[PlyCount "68"]
[EventDate "2024.02.26"]
[EventType "swiss"]
[EventCountry "GER"]
[SourceTitle "playchess.com"]
[Source "ChessBase"]
[SourceQuality "1"]
[TimeControl "40/6000+30:1800+30"]

{[%evp 11,68,10,25,-4,0,0,0,-13,-4,-24,-12,-20,6,0,0,0,0,0,0,0,75,43,52,39,61,39,104,57,62,49,52,54,43,0,0,0,28,32,33,-44,-34,-46,-41,-52,-46,-51,-55,-57,-52,-43,-22,-46,-45,-58,0,-22,0,-69,0]} 1. e4 {[%emt 0:06:43]} c5 {[%emt 0:00:05]} 2. Nf3 {[%emt 0:00:09]} d6 {[%emt 0:00:04]} 3. d4 {[%emt 0:00:15]} cxd4 {[%emt 0:00:05]} 4. Nxd4 {[%emt 0:00:07]} Nf6 {[%emt 0:00:04]} 5. Nc3 {[%emt 0:00:10]} a6 {[%emt 0:00:04]} 6. h3 {[%emt 0:00:09]} e5 {[%emt 0:00:16]} 7. Nf3 {[%emt 0:00:30]} Be7 {[%emt 0:08:09]} 8. g4 {[%emt 0:00:37]} h6 {[%emt 0:01:33]} 9. Rg1 {[%emt 0:00:38] The position is equal.} b5 {[%emt 0:05:01][%cal Bb7b5,Bb5b4][%mdl 32]} 10. g5 {[%emt 0:00:34]} hxg5 {[%emt 0:00:58]} 11. Nxg5 {[%emt 0:00:11]} Bb7 {[%emt 0:03:03]} 12. Be3 $1 {[%emt 0:00:11]} Nbd7 {[%emt 0:05:02]} 13. a4 {[%emt 0:01:19]} b4 {[%emt 0:03:32]} 14. Bc4 $1 {[%emt 0:00:19]} Rf8 {[%emt 0:10:38]} 15. Nd5 {[%emt 0:04:14]} Rc8 {[%emt 0:15:17]} (15... Nxd5 $11 16. exd5 (16. Bxd5 Bxd5 17. Qxd5 Rc8 $11) 16... Qa5) 16. Qd3 {[%emt 0:26:34] White is much more active.} (16. Nxe7 {looks sharper.} Kxe7 17. Qd3 Qc7 18. Bb3) 16... Nxd5 {[%emt 0:05:30]} 17. exd5 {[%emt 0:03:20][%cal Og5e6] Black must now prevent Ne6!} Qa5 {[%emt 0:05:36]} 18. b3 {[%emt 0:06:42]} g6 {[%emt 0:14:30]} ({Black should play} 18... Nb6 $14) 19. O-O-O {[%emt 0:18:33]} (19. f4 $16) 19... Nb6 $14 {[%emt 0:01:35]} 20. Bxb6 {[%emt 0:06:13]} Qxb6 {[%emt 0:00:05] [#]} 21. f4 $1 {[%emt 0:00:34]} exf4 {[%emt 0:03:15]} (21... Qd4 22. Qxd4) 22. Rde1 {[%emt 0:00:39][%cal Og5f7] Inhibits Qe3+.} Kd7 $1 {[%emt 0:01:10]} 23. Qd2 {[%emt 0:08:07]} Bxg5 {[%emt 0:07:11]} 24. Rxg5 {[%emt 0:00:12]} Rce8 {[%emt 0:00:14]} 25. Rxe8 {[%emt 0:02:08]} (25. Rf1 $14) 25... Rxe8 $15 {[%emt 0:00:06]} 26. Qxf4 {[%emt 0:00:24]} Qe3+ {[%emt 0:00:12]} 27. Qxe3 {[%emt 0:00:05]} Rxe3 {[%emt 0:00:04][%mdl 4096] Endgame. KRB-KRB} 28. h4 {[%emt 0:02:00]} Ke7 {[%emt 0:03:07]} 29. Rg4 {[%emt 0:03:17] Inhibits Re4.} a5 {[%emt 0:02:55]} 30. Kd2 {[%emt 0:00:22]} Rh3 {[%emt 0:01:05] Threatens to win with ...Rh2+.} 31. Re4+ {[%emt 0:06:11]} Kd8 {[%emt 0:02:42]} 32. Rf4 {[%emt 0:06:00]} Ke7 {[%emt 0:01:48] And now ...f5 would win.} 33. Re4+ {[%emt 0:00:01]} Kd8 {[%emt 0:00:31]} (33... Kf8 $11) 34. Rf4 {[%emt 0:00:04]} Ke7 {[%emt 0:04:38] Weighted Error Value: White=0.12 (very precise) /Black=0.13 (very precise) .  Mistake:       	White=2     	Black=4      Inaccurate:     	White=2     	Black=2      OK:         	White=9     	Black=14     Best:        	White=5     	Black=1      Strong:       	White=2     	Black=1} (34... f5 $15 35. Bb5 Rh2+ (35... Bxd5 36. Rd4 $15) 36. Kc1 Bxd5) 1/2-1/2

[Event "125-Jahre Werder Bremen 2024"]
[Site "Bremen"]
[Date "2024.03.03"]
[Round "2.12"]
[White "Guichard, Pauline"]
[Black "Schneider, Jana"]
[Result "0-1"]
[ECO "D35"]
[WhiteElo "2385"]
[BlackElo "2303"]
[Annotator "TA"]
[PlyCount "106"]
[EventDate "2024.02.26"]
[EventType "swiss"]
[EventCountry "GER"]
[SourceTitle "playchess.com"]
[Source "ChessBase"]
[SourceQuality "1"]
[TimeControl "40/6000+30:1800+30"]

{[%evp 15,106,20,25,4,26,20,23,22,24,23,25,22,37,34,49,47,47,43,44,38,45,37,41,24,72,71,158,60,67,34,97,-68,-72,-72,-58,-69,-70,-87,0,-106,-88,-202,-193,-171,-179,-239,-242,-217,-82,-78,-29,-30,-26,-27,-24,-26,-29,-24,-20,-92,-99,-103,-103,-93,-92,-92,-92,-92,-92,-92,-88,-91,-77,-296,-304,-256,-252,-657,-654,-29961,-11976,-4767,-2901,-29981,-29983,-29983,-29981,-29981,-29982,-29982,-29983,-29983,-29984]} 1. d4 {[%emt 0:00:03]} d5 {[%emt 0:00:11]} 2. c4 {[%emt 0:00:12]} e6 {[%emt 0:00:08]} 3. Nc3 {[%emt 0:00:11]} Nf6 {[%emt 0:00:09]} 4. cxd5 {[%emt 0:00:26]} exd5 {[%emt 0:00:09]} 5. Bg5 {[%emt 0:00:08]} Be7 {[%emt 0:00:25]} 6. e3 {[%emt 0:00:17]} h6 {[%emt 0:00:26]} 7. Bh4 {[%emt 0:00:24]} O-O {[%emt 0:00:19]} 8. Bd3 {[%emt 0:00:25]} c6 {[%emt 0:00:42]} 9. Bg3 {[%emt 0:01:03]} Bd6 {[%emt 0:05:25]} 10. Nge2 {[%emt 0:00:49]} Re8 {[%emt 0:03:43]} 11. O-O {[%emt 0:12:33] White has an edge.} Bxg3 {[%emt 0:11:57]} 12. Nxg3 {[%emt 0:00:13]} Nbd7 {[%emt 0:00:16][%cal Bb8d7,Bd7f8,Bf8e6][%mdl 32]} 13. Qd2 {[%emt 0:10:03]} Nf8 {[%emt 0:00:43]} 14. f3 {[%emt 0:02:14]} h5 {[%emt 0:03:49][%cal Bh6h5,Bh5h4,Bh4h3][%mdl 32]} 15. Qf2 {[%emt 0:05:56]} h4 {[%emt 0:03:11]} 16. Nf5 {[%emt 0:03:48]} h3 {[%emt 0:01:16]} 17. g4 {[%emt 0:05:36]} g6 {[%emt 0:07:59]} 18. Ng3 {[%emt 0:15:48]} Ne6 {[%emt 0:01:43]} 19. Kh1 {[%emt 0:02:12]} Qe7 {[%emt 0:17:52]} (19... Bd7 $11 {is superior.}) 20. Rae1 $16 {[%emt 0:02:28]} c5 {[%emt 0:03:06]} (20... Bd7 $142) 21. Nge2 {[%emt 0:04:10]} (21. Nf5 $1 $16 {[%cal Rf5e7]} Qd8 (21... gxf5 $2 {perishes.} 22. gxf5 Ng7 23. Rg1 $18) 22. Qh4) 21... Bd7 $14 {[%emt 0:09:16]} 22. a3 {[%emt 0:05:12]} Qd6 {[%emt 0:08:12]} (22... Ng5 $14 23. Nf4 Bc6) 23. Qg3 $2 {[%emt 0:03:31]} (23. Qh4 $16 cxd4 24. exd4) 23... Qxg3 $15 {[%emt 0:05:52]} 24. hxg3 {[%emt 0:00:36]} Ng5 {[%emt 0:04:17]} 25. Ng1 {[%emt 0:08:24]} c4 $36 {[%emt 0:05:00][%mdl 2048] Black has the initiative.} 26. Bc2 {[%emt 0:01:31]} Re7 {[%emt 0:00:15]} (26... a5 $17 27. a4 (27. Kh2 Kg7 $17) 27... Ra6) 27. Nd1 {[%emt 0:14:06]} (27. Kh2 $11 {remains equal.}) 27... Rae8 {[%emt 0:00:47] Black is much more active. The white rooks are passive. White is weak on the light squares} 28. Nf2 {[%emt 0:02:16]} (28. a4 $17 {was called for.}) 28... Rxe3 $19 {[%emt 0:04:01]} 29. Rxe3 {[%emt 0:00:07]} Rxe3 {[%emt 0:00:02]} 30. Nfxh3 {[%emt 0:00:10]} (30. Nd1 $142 Re6 31. Nf2) 30... Nxh3 {[%emt 0:06:56]} 31. Nxh3 {[%emt 0:00:06] [#]} Re2 {[%emt 0:00:42]} (31... c3 $1 $19 {[%cal Rc3b2] has better winning chances.} 32. b3 Bb5) 32. Rf2 $17 {[%emt 0:00:18]} Rxf2 {[%emt 0:01:06]} ({Black should try} 32... Re1+ $17 33. Kg2 Ra1) 33. Nxf2 {[%emt 0:00:06][%mdl 4096] Endgame. KBN-KBN} Ne8 {[%emt 0:00:31]} 34. Nd1 {[%emt 0:03:20]} Nc7 {[%emt 0:00:18]} 35. Nc3 $1 {[%emt 0:01:47]} b5 {[%emt 0:01:53]} 36. Kg2 {[%emt 0:01:16]} a5 {[%emt 0:02:52]} 37. Kf2 {[%emt 0:00:25]} (37. b4 $1 $11) 37... b4 {[%emt 0:00:41]} 38. axb4 {[%emt 0:01:38]} axb4 {[%emt 0:00:03]} 39. Ne2 {[%emt 0:00:07]} Kf8 {[%emt 0:01:14]} 40. Ke3 {[%emt 0:01:10]} Ke7 {[%emt 0:01:21]} 41. Kf4 {[%emt 0:09:36]} Bb5 {[%emt 0:07:02][%cal Oc4c3]} 42. Ke3 {[%emt 0:00:15]} Na8 {[%emt 0:02:54]} 43. Kd2 {[%emt 0:08:54]} Nb6 {[%emt 0:01:21]} 44. Nc1 $2 {[%emt 0:02:02] [#] This costs White the game.} (44. Kc1 $17 {is a better defense.}) 44... b3 $1 $19 {[%emt 0:02:17]} 45. Bd1 {[%emt 0:12:03]} Na4 {[%emt 0:00:17]} 46. Be2 $2 {[%emt 0:00:10]} (46. Ne2 Nxb2 47. Nc3) 46... Nxb2 {[%emt 0:05:35]} 47. Nxb3 {[%emt 0:00:13]} cxb3 {[%emt 0:00:06]} 48. Bxb5 {[%emt 0:00:20]} Nc4+ {[%emt 0:00:05]} 49. Bxc4 {[%emt 0:04:27]} dxc4 {[%emt 0:00:06] KP-KP. Black mates.} 50. Kc3 {[%emt 0:00:05]} Kd6 {[%emt 0:00:13]} 51. g5 {[%emt 0:00:08]} Kd5 {[%emt 0:00:14]} 52. g4 {[%emt 0:00:16]} Kd6 {[%emt 0:00:12]} 53. Kb2 {[%emt 0:00:57]} Ke6 {[%emt 0:00:21] Weighted Error Value: White=0.64/Black=0.14 (very precise) .  Loses game:     	White=1     	---        Mistake:       	White=7     	Black=6      Inaccurate:     	White=2     	---        OK:         	White=11    	Black=10     Best:        	White=2     	Black=4      Strong:       	White=1     	Black=1} 0-1

[Event "125-Jahre Werder Bremen 2024"]
[Site "Bremen"]
[Date "2024.03.04"]
[Round "3.1"]
[White "Cheng, Bobby"]
[Black "Gumularz, Szymon"]
[Result "1/2-1/2"]
[ECO "E11"]
[WhiteElo "2584"]
[BlackElo "2590"]
[Annotator "TA"]
[PlyCount "40"]
[EventDate "2024.02.26"]
[EventType "swiss"]
[EventCountry "GER"]
[SourceTitle "playchess.com"]
[Source "ChessBase"]
[SourceQuality "1"]
[TimeControl "40/6000+30:1800+30"]

{[%evp 17,40,8,5,-16,-4,-25,-29,-30,0,0,0,0,0,0,0,0,0,0,0,0,0,-2,0,0,0]} 1. d4 {[%emt 0:00:03]} Nf6 {[%emt 0:00:08]} 2. c4 {[%emt 0:00:05]} e6 {[%emt 0:00:06]} 3. Nf3 {[%emt 0:00:11]} d5 {[%emt 0:00:08]} 4. g3 {[%emt 0:00:06]} Bb4+ {[%emt 0:00:08]} 5. Bd2 {[%emt 0:00:05]} Be7 {[%emt 0:00:09]} 6. Bg2 {[%emt 0:00:07]} O-O {[%emt 0:00:08]} 7. O-O {[%emt 0:00:08]} c6 {[%emt 0:00:05]} 8. Qc2 {[%emt 0:00:32]} Nbd7 {[%emt 0:00:10]} 9. b3 {[%emt 0:00:34]} b6 {[%emt 0:00:54]} 10. Nc3 {[%emt 0:00:16]} Ba6 {[%emt 0:00:43]} 11. e4 {[%emt 0:00:12]} dxc4 {[%emt 0:00:22]} 12. Rfe1 {[%emt 0:00:06] Black has an edge.} b5 {[%emt 0:09:34]} 13. bxc4 {[%emt 0:11:43] The position is equal.} bxc4 {[%emt 0:00:11]} 14. Qa4 {[%emt 0:00:47]} Qc8 {[%emt 0:00:17]} 15. Rab1 {[%emt 0:04:49]} Rd8 {[%emt 0:00:57]} 16. Bf4 {[%emt 0:06:53]} h6 {[%emt 0:00:20]} 17. Qc2 {[%emt 0:11:29]} Nh5 {[%emt 0:03:05]} 18. Be3 {[%emt 0:02:34] [#] e5 is the strong threat.} Nhf6 {[%emt 0:00:13]} 19. Bf4 $1 {[%emt 0:11:48]} Nh5 {[%emt 0:00:12]} 20. Be3 {[%emt 0:00:10] Hoping for e5.} Nhf6 {[%emt 0:00:19] Not much happened in this game.   Weighted Error Value: White=0.03 (flawless) /Black=0.03 (flawless) .  Inaccurate:     	---       	Black=1      OK:         	White=7     	Black=2      Best:        	---       	Black=3      Strong:       	White=1     	---} 1/2-1/2